{"text_format":"3","workbook":"xlsx","n_sheets":1,"sheets":["Orçamento Pessoal Mensal"],"read":"whole","date_system":"1900"}

{"sheet":"Orçamento Pessoal Mensal","index":0,"n_rows":64,"n_cols":10,"rows_kept":64,"merged":[[1,1,1,9],[2,1,2,9],[4,1,6,1],[4,2,4,3],[4,6,5,8],[4,9,5,9],[5,2,5,3],[6,2,6,3],[6,6,7,8],[6,9,7,9],[7,1,9,1],[7,2,7,3],[8,2,8,3],[8,6,9,8],[8,9,9,9],[9,2,9,3],[22,6,22,9],[23,1,23,4],[31,6,31,9],[33,1,33,4],[38,6,38,9],[40,1,40,4],[44,6,44,9],[46,1,46,4],[50,6,50,9],[54,1,54,4],[57,6,57,9],[58,6,59,8],[58,9,59,9],[60,6,61,8],[60,9,61,9],[62,6,63,8],[62,9,63,9]]}
[]
[null,"Orçamento Pessoal Mensal"]
[]
[]
[null,"RENDIMENTO MENSAL ESTIMADO","Rendimento 1",null,{"v":2500,"d":"2,500 €"},null,"SALDO ESTIMADO (rendimentos estimados menos despesas)",null,null,{"$f":"E7-J59","v":{"v":940,"d":"940 €"}}]
[null,null,"Rendimento extra",null,{"v":500,"d":"500 €"}]
[null,null,"Rendimento mensal total",null,{"$f":"SUM(E5:E6)","v":{"v":3000,"d":"3,000 €"}},null,"SALDO REAL (rendimentos reais menos despesas)",null,null,{"$f":"E10-J61","v":{"v":960,"d":"960 €"}}]
[null,"RENDIMENTO MENSAL REAL","Rendimento 1",null,{"v":2500,"d":"2,500 €"}]
[null,null,"Rendimento extra",null,{"v":500,"d":"500 €"},null,"DIFERENÇA (valor real menos valor estimado)",null,null,{"$f":"J7-J5","v":{"v":20,"d":"20 €"}}]
[null,null,"Rendimento mensal total",null,{"$f":"SUM(E8:E9)","v":{"v":3000,"d":"3,000 €"}}]
[]
[null,"HABITAÇÃO","Custo Estimado","Custo Real","Diferença",null,"LAZER","Custo Estimado","Custo Real","Diferença"]
[null,"Hipoteca ou renda",{"v":1500,"d":"1,500 €"},{"v":1400,"d":"1,400 €"},{"$f":"Tabela1[[#This Row],[Custo Estimado]]-Tabela1[[#This Row],[Custo Real]]","v":{"v":100,"d":"100 €"}},null,"Vídeo/DVD",{"v":0,"d":"0 €"},{"v":50,"d":"50 €"},{"$f":"Tabela2[[#This Row],[Custo Estimado]]-Tabela2[[#This Row],[Custo Real]]","v":{"v":-50,"d":"-50 €"}}]
[null,"Telefone",{"v":60,"d":"60 €"},{"v":100,"d":"100 €"},{"$f":"Tabela1[[#This Row],[Custo Estimado]]-Tabela1[[#This Row],[Custo Real]]","v":{"v":-40,"d":"-40 €"}},null,"CDs",null,null,{"$f":"Tabela2[[#This Row],[Custo Estimado]]-Tabela2[[#This Row],[Custo Real]]","v":{"v":0,"d":"0 €"}}]
[null,"Eletricidade",{"v":50,"d":"50 €"},{"v":60,"d":"60 €"},{"$f":"Tabela1[[#This Row],[Custo Estimado]]-Tabela1[[#This Row],[Custo Real]]","v":{"v":-10,"d":"-10 €"}},null,"Filmes",null,null,{"$f":"Tabela2[[#This Row],[Custo Estimado]]-Tabela2[[#This Row],[Custo Real]]","v":{"v":0,"d":"0 €"}}]
[null,"Combustível",{"v":200,"d":"200 €"},{"v":180,"d":"180 €"},{"$f":"Tabela1[[#This Row],[Custo Estimado]]-Tabela1[[#This Row],[Custo Real]]","v":{"v":20,"d":"20 €"}},null,"Concertos",null,null,{"$f":"Tabela2[[#This Row],[Custo Estimado]]-Tabela2[[#This Row],[Custo Real]]","v":{"v":0,"d":"0 €"}}]
[null,"Água e tratamentos",null,null,{"$f":"Tabela1[[#This Row],[Custo Estimado]]-Tabela1[[#This Row],[Custo Real]]","v":{"v":0,"d":"0 €"}},null,"Eventos desportivos",null,null,{"$f":"Tabela2[[#This Row],[Custo Estimado]]-Tabela2[[#This Row],[Custo Real]]","v":{"v":0,"d":"0 €"}}]
[null,"TV por cabo",null,null,{"$f":"Tabela1[[#This Row],[Custo Estimado]]-Tabela1[[#This Row],[Custo Real]]","v":{"v":0,"d":"0 €"}},null,"Teatro",null,null,{"$f":"Tabela2[[#This Row],[Custo Estimado]]-Tabela2[[#This Row],[Custo Real]]","v":{"v":0,"d":"0 €"}}]
[null,"Recolha de resíduos",null,null,{"$f":"Tabela1[[#This Row],[Custo Estimado]]-Tabela1[[#This Row],[Custo Real]]","v":{"v":0,"d":"0 €"}},null,"Outros",null,null,{"$f":"Tabela2[[#This Row],[Custo Estimado]]-Tabela2[[#This Row],[Custo Real]]","v":{"v":0,"d":"0 €"}}]
[null,"Manutenção ou reparações",null,null,{"$f":"Tabela1[[#This Row],[Custo Estimado]]-Tabela1[[#This Row],[Custo Real]]","v":{"v":0,"d":"0 €"}},null,"Outros",null,null,{"$f":"Tabela2[[#This Row],[Custo Estimado]]-Tabela2[[#This Row],[Custo Real]]","v":{"v":0,"d":"0 €"}}]
[null,"Materiais",null,null,{"$f":"Tabela1[[#This Row],[Custo Estimado]]-Tabela1[[#This Row],[Custo Real]]","v":{"v":0,"d":"0 €"}},null,"Outros",null,null,{"$f":"Tabela2[[#This Row],[Custo Estimado]]-Tabela2[[#This Row],[Custo Real]]","v":{"v":0,"d":"0 €"}}]
[null,"Outros",null,null,{"$f":"Tabela1[[#This Row],[Custo Estimado]]-Tabela1[[#This Row],[Custo Real]]","v":{"v":0,"d":"0 €"}},null,"Total",{"$f":"SUBTOTAL(109,Tabela2[Custo Estimado])","v":{"v":0,"d":"0 €"}},{"$f":"SUBTOTAL(109,Tabela2[Custo Real])","v":{"v":50,"d":"50 €"}},{"$f":"SUBTOTAL(109,Tabela2[Diferença])","v":{"v":-50,"d":"-50 €"}}]
[null,"Total",{"$f":"SUBTOTAL(109,Tabela1[Custo Estimado])","v":{"v":1810,"d":"1,810 €"}},{"$f":"SUBTOTAL(109,Tabela1[Custo Real])","v":{"v":1740,"d":"1,740 €"}},{"$f":"SUBTOTAL(109,Tabela1[Diferença])","v":{"v":70,"d":"70 €"}}]
[{"$nulls":6},"EMPRÉSTIMOS","Custo Estimado","Custo Real","Diferença"]
[null,"TRANSPORTES","Custo Estimado","Custo Real","Diferença",null,"Pessoais",null,null,{"$f":"Tabela8[[#This Row],[Custo Estimado]]-Tabela8[[#This Row],[Custo Real]]","v":{"v":0,"d":"0 €"}}]
[null,"Pagamento de veículo",{"v":250,"d":"250 €"},{"v":250,"d":"250 €"},{"$f":"Tabela3[[#This Row],[Custo Estimado]]-Tabela3[[#This Row],[Custo Real]]","v":{"v":0,"d":"0 €"}},null,"Estudante",null,null,{"$f":"Tabela8[[#This Row],[Custo Estimado]]-Tabela8[[#This Row],[Custo Real]]","v":{"v":0,"d":"0 €"}}]
[null,"Despesas de autocarro/táxi",null,null,{"$f":"Tabela3[[#This Row],[Custo Estimado]]-Tabela3[[#This Row],[Custo Real]]","v":{"v":0,"d":"0 €"}},null,"Cartão de crédito",null,null,{"$f":"Tabela8[[#This Row],[Custo Estimado]]-Tabela8[[#This Row],[Custo Real]]","v":{"v":0,"d":"0 €"}}]
[null,"Seguros",null,null,{"$f":"Tabela3[[#This Row],[Custo Estimado]]-Tabela3[[#This Row],[Custo Real]]","v":{"v":0,"d":"0 €"}},null,"Cartão de crédito",null,null,{"$f":"Tabela8[[#This Row],[Custo Estimado]]-Tabela8[[#This Row],[Custo Real]]","v":{"v":0,"d":"0 €"}}]
[null,"Licença",null,null,{"$f":"Tabela3[[#This Row],[Custo Estimado]]-Tabela3[[#This Row],[Custo Real]]","v":{"v":0,"d":"0 €"}},null,"Cartão de crédito",null,null,{"$f":"Tabela8[[#This Row],[Custo Estimado]]-Tabela8[[#This Row],[Custo Real]]","v":{"v":0,"d":"0 €"}}]
[null,"Combustível",null,null,{"$f":"Tabela3[[#This Row],[Custo Estimado]]-Tabela3[[#This Row],[Custo Real]]","v":{"v":0,"d":"0 €"}},null,"Outros",null,null,{"$f":"Tabela8[[#This Row],[Custo Estimado]]-Tabela8[[#This Row],[Custo Real]]","v":{"v":0,"d":"0 €"}}]
[null,"Manutenção",null,null,{"$f":"Tabela3[[#This Row],[Custo Estimado]]-Tabela3[[#This Row],[Custo Real]]","v":{"v":0,"d":"0 €"}},null,"Total",{"$f":"SUBTOTAL(109,Tabela8[Custo Estimado])","v":{"v":0,"d":"0 €"}},{"$f":"SUBTOTAL(109,Tabela8[Custo Real])","v":{"v":0,"d":"0 €"}},{"$f":"SUBTOTAL(109,Tabela8[Diferença])","v":{"v":0,"d":"0 €"}}]
[null,"Outros",null,null,{"$f":"Tabela3[[#This Row],[Custo Estimado]]-Tabela3[[#This Row],[Custo Real]]","v":{"v":0,"d":"0 €"}}]
[null,"Total",{"$f":"SUBTOTAL(109,Tabela3[Custo Estimado])","v":{"v":250,"d":"250 €"}},{"$f":"SUBTOTAL(109,Tabela3[Custo Real])","v":{"v":250,"d":"250 €"}},{"$f":"SUBTOTAL(109,Tabela3[Diferença])","v":{"v":0,"d":"0 €"}},null,"IMPOSTOS","Custo Estimado","Custo Real","Diferença"]
[{"$nulls":6},"Federais",null,null,{"$f":"Tabela9[[#This Row],[Custo Estimado]]-Tabela9[[#This Row],[Custo Real]]","v":{"v":0,"d":"0 €"}}]
[null,"SEGUROS","Custo Estimado","Custo Real","Diferença",null,"Distritais",null,null,{"$f":"Tabela9[[#This Row],[Custo Estimado]]-Tabela9[[#This Row],[Custo Real]]","v":{"v":0,"d":"0 €"}}]
[null,"Casa",null,null,{"$f":"Tabela4[[#This Row],[Custo Estimado]]-Tabela4[[#This Row],[Custo Real]]","v":{"v":0,"d":"0 €"}},null,"Locais",null,null,{"$f":"Tabela9[[#This Row],[Custo Estimado]]-Tabela9[[#This Row],[Custo Real]]","v":{"v":0,"d":"0 €"}}]
[null,"Saúde",null,null,{"$f":"Tabela4[[#This Row],[Custo Estimado]]-Tabela4[[#This Row],[Custo Real]]","v":{"v":0,"d":"0 €"}},null,"Outros",null,null,{"$f":"Tabela9[[#This Row],[Custo Estimado]]-Tabela9[[#This Row],[Custo Real]]","v":{"v":0,"d":"0 €"}}]
[null,"Vida",null,null,{"$f":"Tabela4[[#This Row],[Custo Estimado]]-Tabela4[[#This Row],[Custo Real]]","v":{"v":0,"d":"0 €"}},null,"Total",{"$f":"SUBTOTAL(109,Tabela9[Custo Estimado])","v":{"v":0,"d":"0 €"}},{"$f":"SUBTOTAL(109,Tabela9[Custo Real])","v":{"v":0,"d":"0 €"}},{"$f":"SUBTOTAL(109,Tabela9[Diferença])","v":{"v":0,"d":"0 €"}}]
[null,"Outros",null,null,{"$f":"Tabela4[[#This Row],[Custo Estimado]]-Tabela4[[#This Row],[Custo Real]]","v":{"v":0,"d":"0 €"}}]
[null,"Total",{"$f":"SUBTOTAL(109,Tabela4[Custo Estimado])","v":{"v":0,"d":"0 €"}},{"$f":"SUBTOTAL(109,Tabela4[Custo Real])","v":{"v":0,"d":"0 €"}},{"$f":"SUBTOTAL(109,Tabela4[Diferença])","v":{"v":0,"d":"0 €"}},null,"POUPANÇAS OU INVESTIMENTOS","Custo Estimado","Custo Real","Diferença"]
[{"$nulls":6},"Conta poupança para reforma",null,null,{"$f":"Tabela10[[#This Row],[Custo Estimado]]-Tabela10[[#This Row],[Custo Real]]","v":{"v":0,"d":"0 €"}}]
[null,"ALIMENTAÇÃO","Custo Estimado","Custo Real","Diferença",null,"Conta de investimento",null,null,{"$f":"Tabela10[[#This Row],[Custo Estimado]]-Tabela10[[#This Row],[Custo Real]]","v":{"v":0,"d":"0 €"}}]
[null,"Compras",null,null,{"$f":"Tabela5[[#This Row],[Custo Estimado]]-Tabela5[[#This Row],[Custo Real]]","v":{"v":0,"d":"0 €"}},null,"Outros",null,null,{"$f":"Tabela10[[#This Row],[Custo Estimado]]-Tabela10[[#This Row],[Custo Real]]","v":{"v":0,"d":"0 €"}}]
[null,"Restauração",null,null,{"$f":"Tabela5[[#This Row],[Custo Estimado]]-Tabela5[[#This Row],[Custo Real]]","v":{"v":0,"d":"0 €"}},null,"Total",{"$f":"SUBTOTAL(109,Tabela10[Custo Estimado])","v":{"v":0,"d":"0 €"}},{"$f":"SUBTOTAL(109,Tabela10[Custo Real])","v":{"v":0,"d":"0 €"}},{"$f":"SUBTOTAL(109,Tabela10[Diferença])","v":{"v":0,"d":"0 €"}}]
[null,"Outros",null,null,{"$f":"Tabela5[[#This Row],[Custo Estimado]]-Tabela5[[#This Row],[Custo Real]]","v":{"v":0,"d":"0 €"}}]
[null,"Total",{"$f":"SUBTOTAL(109,Tabela5[Custo Estimado])","v":{"v":0,"d":"0 €"}},{"$f":"SUBTOTAL(109,Tabela5[Custo Real])","v":{"v":0,"d":"0 €"}},{"$f":"SUBTOTAL(109,Tabela5[Diferença])","v":{"v":0,"d":"0 €"}},null,"PRESENTES E DONATIVOS","Custo Estimado","Custo Real","Diferença"]
[{"$nulls":6},"Caridade 1",null,null,{"$f":"Tabela11[[#This Row],[Custo Estimado]]-Tabela11[[#This Row],[Custo Real]]","v":{"v":0,"d":"0 €"}}]
[null,"ANIMAIS DE ESTIMAÇÃO","Custo Estimado","Custo Real","Diferença",null,"Caridade 2",null,null,{"$f":"Tabela11[[#This Row],[Custo Estimado]]-Tabela11[[#This Row],[Custo Real]]","v":{"v":0,"d":"0 €"}}]
[null,"Alimentação",null,null,{"$f":"Tabela6[[#This Row],[Custo Estimado]]-Tabela6[[#This Row],[Custo Real]]","v":{"v":0,"d":"0 €"}},null,"Caridade 3",null,null,{"$f":"Tabela11[[#This Row],[Custo Estimado]]-Tabela11[[#This Row],[Custo Real]]","v":{"v":0,"d":"0 €"}}]
[null,"Médico",null,null,{"$f":"Tabela6[[#This Row],[Custo Estimado]]-Tabela6[[#This Row],[Custo Real]]","v":{"v":0,"d":"0 €"}},null,"Total",{"$f":"SUBTOTAL(109,Tabela11[Custo Estimado])","v":{"v":0,"d":"0 €"}},{"$f":"SUBTOTAL(109,Tabela11[Custo Real])","v":{"v":0,"d":"0 €"}},{"$f":"SUBTOTAL(109,Tabela11[Diferença])","v":{"v":0,"d":"0 €"}}]
[null,"Cuidados",null,null,{"$f":"Tabela6[[#This Row],[Custo Estimado]]-Tabela6[[#This Row],[Custo Real]]","v":{"v":0,"d":"0 €"}}]
[null,"Brinquedos",null,null,{"$f":"Tabela6[[#This Row],[Custo Estimado]]-Tabela6[[#This Row],[Custo Real]]","v":{"v":0,"d":"0 €"}},null,"ASSUNTOS JURÍDICOS","Custo Estimado","Custo Real","Diferença"]
[null,"Outros",null,null,{"$f":"Tabela6[[#This Row],[Custo Estimado]]-Tabela6[[#This Row],[Custo Real]]","v":{"v":0,"d":"0 €"}},null,"Advogado",null,null,{"$f":"Tabela12[[#This Row],[Custo Estimado]]-Tabela12[[#This Row],[Custo Real]]","v":{"v":0,"d":"0 €"}}]
[null,"Total",{"$f":"SUBTOTAL(109,Tabela6[Custo Estimado])","v":{"v":0,"d":"0 €"}},{"$f":"SUBTOTAL(109,Tabela6[Custo Real])","v":{"v":0,"d":"0 €"}},{"$f":"SUBTOTAL(109,Tabela6[Diferença])","v":{"v":0,"d":"0 €"}},null,"Pensão de alimentos",null,null,{"$f":"Tabela12[[#This Row],[Custo Estimado]]-Tabela12[[#This Row],[Custo Real]]","v":{"v":0,"d":"0 €"}}]
[{"$nulls":6},"Pagamentos de direitos de retenção ou julgamento",null,null,{"$f":"Tabela12[[#This Row],[Custo Estimado]]-Tabela12[[#This Row],[Custo Real]]","v":{"v":0,"d":"0 €"}}]
[null,"CUIDADOS PESSOAIS","Custo Estimado","Custo Real","Diferença",null,"Outros",null,null,{"$f":"Tabela12[[#This Row],[Custo Estimado]]-Tabela12[[#This Row],[Custo Real]]","v":{"v":0,"d":"0 €"}}]
[null,"Médico",null,null,{"$f":"Tabela7[[#This Row],[Custo Estimado]]-Tabela7[[#This Row],[Custo Real]]","v":{"v":0,"d":"0 €"}},null,"Total",{"$f":"SUBTOTAL(109,Tabela12[Custo Estimado])","v":{"v":0,"d":"0 €"}},{"$f":"SUBTOTAL(109,Tabela12[Custo Real])","v":{"v":0,"d":"0 €"}},{"$f":"SUBTOTAL(109,Tabela12[Diferença])","v":{"v":0,"d":"0 €"}}]
[null,"Cabeleireiro/manicura",null,null,{"$f":"Tabela7[[#This Row],[Custo Estimado]]-Tabela7[[#This Row],[Custo Real]]","v":{"v":0,"d":"0 €"}}]
[null,"Vestuário",null,null,{"$f":"Tabela7[[#This Row],[Custo Estimado]]-Tabela7[[#This Row],[Custo Real]]","v":{"v":0,"d":"0 €"}},null,"CUSTO TOTAL ESTIMADO",null,null,{"$f":"SUM(C23,C33,C40,C46,C54,C64,H22,H31,H38,H44,H50,H57)","v":{"v":2060,"d":"2,060 €"}}]
[null,"Limpeza a seco",null,null,{"$f":"Tabela7[[#This Row],[Custo Estimado]]-Tabela7[[#This Row],[Custo Real]]","v":{"v":0,"d":"0 €"}}]
[null,"Ginásio",null,null,{"$f":"Tabela7[[#This Row],[Custo Estimado]]-Tabela7[[#This Row],[Custo Real]]","v":{"v":0,"d":"0 €"}},null,"CUSTO TOTAL REAL",null,null,{"$f":"SUM(D23,D33,D40,D46,D54,D64,I22,I31,I38,I44,I50,I57)","v":{"v":2040,"d":"2,040 €"}}]
[null,"Contribuições ou taxas da organização",null,null,{"$f":"Tabela7[[#This Row],[Custo Estimado]]-Tabela7[[#This Row],[Custo Real]]","v":{"v":0,"d":"0 €"}}]
[null,"Outros",null,null,{"$f":"Tabela7[[#This Row],[Custo Estimado]]-Tabela7[[#This Row],[Custo Real]]","v":{"v":0,"d":"0 €"}},null,"DIFERENÇA TOTAL",null,null,{"$f":"SUM(E23,E33,E40,E46,E54,E64,J22,J31,J38,J44,J50,J57)","v":{"v":20,"d":"20 €"}}]
[null,"Total",{"$f":"SUBTOTAL(109,Tabela7[Custo Estimado])","v":{"v":0,"d":"0 €"}},{"$f":"SUBTOTAL(109,Tabela7[Custo Real])","v":{"v":0,"d":"0 €"}},{"$f":"SUBTOTAL(109,Tabela7[Diferença])","v":{"v":0,"d":"0 €"}}]